[Event "44th Chess Olympiad Open 2022"]
[Site "Chennai"]
[Date "2022.07.30"]
[Round "2.38"]
[White "Delgado Rosas, Alex Antonio"]
[Black "Hesham, Abdelrahman"]
[Result "0-1"]
[WhiteElo "2149"]
[BlackElo "2386"]
[Annotator "TA"]
[PlyCount "60"]
[EventDate "2022.??.??"]
[TimeControl "60"]

{[%evp 9,60,0,0,-2,8,-3,-12,-54,-48,-54,-55,-54,-58,-56,-47,-38,-40,-57,-63,
-58,-41,-56,-56,-66,-48,-50,-54,-46,-42,-49,-43,-56,-45,-48,-30,-83,-72,-179,
-170,-170,-139,-217,-230,-316,-310,-725,-717,-784,-776,-690,-418,-926,-873]} 1.
d4 {[%emt 0:00:08]} Nf6 {[%emt 0:01:03]} 2. Bf4 {[%emt 0:00:08]} g6 {[%emt 0:
00:00]} 3. Nc3 {[%emt 0:00:12]} d5 {[%emt 0:00:05]} 4. e3 {[%emt 0:00:17]} Bg7
{[%emt 0:00:05]} 5. Nb5 {[%emt 0:00:49]} Na6 {[%emt 0:00:05]} 6. Nf3 {[%emt 0:
00:00] A45: Trompowsky Attack.} O-O {[%emt 0:00:16] 6...0-0 scores better than
6...c6.} 7. h3 {[%emt 0:01:09]} Ne4 {[%emt 0:07:27]} 8. Bd3 {[%emt 0:06:04]
The position is equal.} c6 {[%emt 0:01:08]} 9. Nc3 {[%emt 0:06:03]} Nxc3 {
[%emt 0:00:07]} 10. bxc3 {[%emt 0:00:05]} Qa5 {[%emt 0:00:05]} 11. O-O {
[%emt 0:11:02]} Qxc3 {[%emt 0:02:04]} 12. Bxa6 {[%emt 0:01:18]} bxa6 {[%emt 0:
00:00] [#]} 13. Qd2 $146 {[%emt 0:12:31]} ({Predecessor:} 13. Rb1 Bf5 14. Rb7
Rfe8 15. Ne5 f6 16. Nd3 e5 17. dxe5 fxe5 18. Bg3 Qa3 19. Qb1 {1-0 (50)
Sukandar,I (2392)-Assaubayeva,B (2439) Chess.com INT 2022}) 13... Qxd2 {
[%emt 0:03:45]} 14. Nxd2 {[%emt 0:00:03]} f6 {[%emt 0:04:35]} 15. Nb3 {[%emt 0:
00:00]} e5 {[%emt 0:00:16]} 16. Bg3 {[%emt 0:00:18]} Bf5 {[%emt 0:00:20]} 17.
Rfc1 {[%emt 0:00:17]} Rfe8 {[%emt 0:10:29]} 18. c4 {[%emt 0:03:22]} Rac8 {
[%emt 0:05:48]} 19. Rc3 {[%emt 0:24:19]} Be6 {[%emt 0:03:29]} 20. cxd5 {
[%emt 0:04:54]} cxd5 {[%emt 0:00:14]} (20... Bxd5 21. dxe5 fxe5 22. Rac1 $11)
21. Rac1 {[%emt 0:01:56]} Rc4 {[%emt 0:00:29]} 22. Nc5 {[%emt 0:06:18] [#]} (
22. Na5 $11 {keeps the balance.}) 22... Bf7 $1 $17 {[%emt 0:00:29]} ({Much
worse is} 22... exd4 $6 23. Rxc4 dxc4 24. Nxe6 Rxe6 25. exd4 $11) 23. Nxa6 {
[%emt 0:09:54]} (23. Rxc4 $17 dxc4 24. dxe5) 23... exd4 $19 {[%emt 0:00:30]}
24. exd4 {[%emt 0:04:42]} Re2 {[%emt 0:04:41]} ({Stronger than} 24... Rxd4 25.
Rc8 $17) 25. a3 {[%emt 0:00:06]} (25. Nc7 $17 {was necessary.}) 25... Bh6 {
[%emt 0:00:18]} ({Not} 25... Rxd4 26. Rc8+ Bf8 27. R1c7 $15) 26. Rxc4 {[%emt 0:
00:00]} dxc4 {[%emt 0:00:04][%cal Yd5c4,Yc4c3]} 27. Rc3 {[%emt 0:00:00] [#]} (
27. f4) 27... Bd2 {[%emt 0:00:16]} 28. Rc2 {[%emt 0:00:21]} c3 {[%emt 0:00:30]}
29. Nc5 {[%emt 0:00:16]} g5 {[%emt 0:00:19]} 30. Bc7 {[%emt 0:00:00]} (30. Na4
$142 Bb3 31. Rxc3 Bxa4 32. Rc7) 30... Bg6 {[%emt 0:00:07] Weighted Error Value:
White=0.57/Black=0.15 (very precise)} 0-1

[Event "44th Chess Olympiad Open 2022"]
[Site "Chennai"]
[Date "2022.07.30"]
[Round "2.39"]
[White "Kadric, Denis"]
[Black "Abdulwahhab, Ahmed Abdulsattar A"]
[Result "1-0"]
[WhiteElo "2554"]
[BlackElo "2251"]
[Annotator "TA"]
[PlyCount "86"]
[EventDate "2022.??.??"]
[TimeControl "60"]

{[%evp 19,86,35,50,4,10,0,35,0,34,33,19,46,37,0,59,0,70,45,107,76,75,33,6,6,21,
15,16,8,0,23,45,61,79,35,41,0,134,147,128,93,139,123,112,124,131,129,120,107,
118,-194,-203,-236,-225,-385,-114,-364,-363,-339,-345,-1036,-1028,-1112,-1108,
-2800,-2156,-1536,-1064,-29992,-29993]} 1. e4 {[%emt 0:00:04]} c5 {[%emt 0:00:
00]} 2. Nf3 {[%emt 0:00:14]} Nc6 {[%emt 0:00:07]} 3. d4 {[%emt 0:00:14]} cxd4 {
[%emt 0:00:07]} 4. Nxd4 {[%emt 0:00:07]} Qc7 {[%emt 0:00:05]} 5. Nc3 {[%emt 0:
00:00]} e6 {[%emt 0:00:07]} 6. Be3 {[%emt 0:02:52]} a6 {[%emt 0:00:10]} 7. Qd2
{[%emt 0:00:59]} Nf6 {[%emt 0:00:12]} 8. f3 {[%emt 0:00:18]} Ne5 {[%emt 0:00:
00]} 9. O-O-O {[%emt 0:05:50]} Bb4 {[%emt 0:00:09] 9...Bb4 is better than 9...
b5.} 10. Nb3 {[%emt 0:00:45]} b5 {[%emt 0:00:44]} 11. Qe1 {[%emt 0:00:30] B48:
Sicilian: Taimanov: 5 Nc3 Qc7 6 Be3 a6 without Be2.} (11. Kb1 $14 Be7 12. h4)
11... Rb8 $11 {[%emt 0:05:22] has lost popularity (11...Be7).} 12. Qg3 {
[%emt 0:09:02]} Nh5 {[%emt 0:09:04]} (12... Bxc3 13. bxc3 O-O 14. Bc5 $16) 13.
Qh4 {[%emt 0:03:08] White is slightly better.} g6 {[%emt 0:05:27]} 14. g4 {
[%emt 0:16:00]} Be7 {[%emt 0:06:50]} (14... Nxf3 $2 15. Qh3 Ne5 16. gxh5 $18)
15. Qf2 {[%emt 0:01:03]} Nf6 {[%emt 0:02:18] [#]} 16. Bd4 $146 {[%emt 0:10:24]}
({Predecessor:} 16. g5 Nh5 17. Kb1 O-O 18. Bd4 Nc4 19. Rg1 a5 20. Bxc4 bxc4 21.
Nc5 d6 22. N5a4 Bd7 23. Nb6 Be8 {½-½ (25) Salgado Lopez,I (2278)
-Javakhishvili,L (2456) Linares 2005}) 16... Nc6 {[%emt 0:07:09]} (16... b4 $11
17. Na4 d6) 17. Be3 {[%emt 0:24:09]} (17. g5 $14 Nxd4 18. Qxd4 Qf4+ 19. Kb1
Qxg5 20. e5) 17... d6 {[%emt 0:12:17]} (17... Ne5 $11) 18. Kb1 {[%emt 0:02:19]}
(18. g5 $5 {[%cal Rg5f6]} Nh5 19. Bg2 $11) 18... Na5 {[%emt 0:13:52]} (18...
O-O $14) 19. Ba7 {[%emt 0:09:07]} Rb7 {[%emt 0:02:13] Threatens to win with ...
Nxb3.} 20. Bd4 {[%emt 0:00:06] Hoping for g5. White is more active.} O-O $1 {
[%emt 0:10:06]} 21. h4 {[%emt 0:03:40]} Nc4 {[%emt 0:03:51]} 22. g5 $36 {
[%emt 0:02:10] White is pushing.} Nh5 {[%emt 0:01:28]} 23. f4 {[%emt 0:01:05]
[%cal Yf4f5]} b4 {[%emt 0:04:51]} 24. Na4 {[%emt 0:01:34][%cal Ye4e5]} e5 {
[%emt 0:04:50]} 25. fxe5 {[%emt 0:01:20]} dxe5 {[%emt 0:01:26]} 26. Bc5 {
[%emt 0:00:04]} (26. Bxc4 $5 Qxc4 27. Bxe5 $14 (27. Na5 Qb5 $17)) 26... Nd6 {
[%emt 0:01:31]} 27. Qe3 {[%emt 0:04:19]} ({Reject} 27. Bxa6 Nxe4 28. Qe3 Nxc5
29. Naxc5 Ra7 $15) 27... Nb5 {[%emt 0:02:15]} (27... Nf4 $1 $11) 28. Bb6 $16 {
[%emt 0:00:39]} Qb8 {[%emt 0:01:13]} 29. Na5 {[%emt 0:00:12]} Bg4 {[%emt 0:01:
34]} ({Better is} 29... Rd7 30. Bc4 Rxd1+ 31. Rxd1 Nd4) 30. Nxb7 {[%emt 0:01:
20]} Bxd1 {[%emt 0:00:15]} 31. Nbc5 {[%emt 0:00:04] Bxb5 is the strong threat.}
Nd4 {[%emt 0:01:46] [#]} 32. Bd3 {[%emt 0:00:35]} Bg4 {[%emt 0:00:00]} 33. Nxa6
{[%emt 0:00:56]} ({Don't play} 33. Bxa6 $6 Bd8 34. Bxd8 Rxd8 $11) 33... Qb7 {
[%emt 0:00:35]} 34. Nc7 $2 {[%emt 0:00:27] [#] Against Ra8} (34. Bxd4 $16 exd4
35. Qxd4) 34... Bd7 $1 $19 {[%emt 0:00:33]} 35. Ba6 {[%emt 0:00:28]} Qc6 {
[%emt 0:00:35]} 36. Nd5 $2 {[%emt 0:00:15]} (36. Bd3 Bd6 37. Nd5 (37. Bxd4 $2
exd4 38. Qxd4 Qxc7 $19) 37... Qxa4 38. Bxd4) 36... Qxc2+ {[%emt 0:00:38]} 37.
Ka1 {[%emt 0:00:02]} Bd6 {[%emt 0:00:26]} 38. Bxd4 {[%emt 0:01:19]} Qxa4 {
[%emt 0:00:30]} 39. Nb6 $2 {[%emt 0:00:38]} (39. Bc4 exd4 40. Qxd4) 39... Qxa6
{[%emt 0:00:24]} 40. Nxd7 {[%emt 0:00:12]} exd4 {[%emt 0:00:00]} 41. Qxd4 {
[%emt 0:30:31]} b3 {[%emt 0:30:54][%csl Gb3][%cal Ra6a2]} 42. a4 {[%emt 0:00:
34]} Ra8 {[%emt 0:00:00] aiming for ...Qc6.} 43. e5 {[%emt 0:00:00]} Qc6 {
[%emt 0:00:00] Weighted Error Value: White=0.79/Black=0.22 (precise) . Loss on
time!?} 1-0

[Event "44th Chess Olympiad Open 2022"]
[Site "Chennai"]
[Date "2022.07.30"]
[Round "2.39"]
[White "Draskovic, Luka"]
[Black "Ahmed, Ali Layth Ahmed"]
[Result "1-0"]
[WhiteElo "2503"]
[BlackElo "2249"]
[Annotator "TA"]
[PlyCount "89"]
[EventDate "2022.??.??"]
[TimeControl "60"]

{[%evp 9,89,11,10,12,12,16,14,8,19,7,14,0,12,0,0,0,0,0,0,0,0,0,0,-1,7,7,16,17,
22,3,0,25,145,142,143,117,154,132,168,158,208,208,221,219,295,284,278,277,460,
456,557,550,577,592,584,563,566,573,656,660,793,672,943,891,867,869,847,831,
1068,1070,1034,1008,1155,1145,1018,995,1254,1192,2057,1939,2752,1549]} 1. e4 {
[%emt 0:00:07]} c6 {[%emt 0:00:06]} 2. d4 {[%emt 0:00:13]} d5 {[%emt 0:00:06]}
3. e5 {[%emt 0:00:55]} Bf5 {[%emt 0:00:56]} 4. h4 {[%emt 0:00:29]} h5 {[%emt 0:
00:00]} 5. Bd3 {[%emt 0:00:50]} Bxd3 {[%emt 0:00:12]} 6. Qxd3 {[%emt 0:00:06]
[%cal Ye5e6] B12: Caro-Kann: Advance Variation.} Qa5+ {[%emt 0:04:40]} 7. Nd2 {
[%emt 0:01:03][%cal Ye5e6] Strongly threatening e6!} e6 {[%emt 0:00:53]} 8.
Ngf3 {[%emt 0:01:48] The position is equal.} Nh6 {[%emt 0:02:17]} 9. O-O {
[%emt 0:01:07]} Nf5 {[%emt 0:01:11]} 10. Nb3 $1 {[%emt 0:02:15] outshines the
older 10.c4.} Qb5 {[%emt 0:01:21]} 11. Qd1 {[%emt 0:00:27]} c5 {[%emt 0:09:33]}
12. a4 {[%emt 0:01:56]} Qb6 {[%emt 0:08:09]} 13. dxc5 {[%emt 0:00:00]} Bxc5 {
[%emt 0:01:40]} 14. Nxc5 {[%emt 0:00:04]} Qxc5 {[%emt 0:00:06]} 15. c3 {
[%emt 0:00:03]} Nc6 {[%emt 0:03:07]} 16. Re1 {[%emt 0:10:58]} Rd8 {[%emt 0:15:
05]} 17. Bg5 {[%emt 0:01:48]} Rd7 {[%emt 0:02:29]} 18. Rc1 {[%emt 0:00:00]} Qb6
{[%emt 0:07:58] [#]} 19. b4 $146 {[%emt 0:08:14][%cal Yb2b4,Yb4b5]} ({
Predecessor:} 19. Nd4 Ncxd4 20. cxd4 Rc7 21. Rc3 Kd7 22. Qd3 Rhc8 23. Rec1 Qxb2
24. Rxc7+ Rxc7 25. Rb1 {0-1 (65) Fier,A (2583)-Vazquez,G (2545) Mexico City
2022}) 19... a6 {[%emt 0:03:59]} 20. Nd2 {[%emt 0:09:04]} a5 {[%emt 0:06:44]
White leaves nothing to chance now.} (20... Nce7 $11 {keeps the balance.}) 21.
b5 $16 {[%emt 0:02:25]} Nce7 {[%emt 0:02:02]} 22. c4 {[%emt 0:00:00]} dxc4 {
[%emt 0:09:10][%cal Yc4c3] [#]} 23. Qf3 $1 {[%emt 0:05:37]} ({Don't play} 23.
Rxc4 Qd8 $16) (23. Nxc4 Rxd1 24. Nxb6 Rxe1+ 25. Rxe1 Nd5 $16) 23... O-O {
[%emt 0:10:23][%cal Yc4c3]} 24. Nxc4 {[%emt 0:00:33]} Qa7 {[%emt 0:00:00]} (
24... Qc5 $16 25. Nxa5 (25. Qxh5 Qb4 $16) 25... Qa7) 25. Qxh5 $18 {[%emt 0:02:
29]} Ng6 {[%emt 0:01:50]} 26. Qg4 {[%emt 0:05:19] Hoping for h5.} Rd4 {[%emt 0:
02:53]} 27. Re4 {[%emt 0:00:43]} Rxe4 {[%emt 0:04:02]} 28. Qxe4 {[%emt 0:00:06]
} Rc8 $2 {[%emt 0:00:29] [#]} (28... Qd4 {was called for.} 29. Qxd4 (29. Qxb7
Ngxh4 30. Be3 Qg4 $18) 29... Nxd4) 29. Rd1 {[%emt 0:05:42] White is clearly
winning.} b6 {[%emt 0:02:08]} 30. h5 {[%emt 0:06:27]} Nf8 {[%emt 0:00:31]} 31.
Nd6 {[%emt 0:02:55]} Nxd6 {[%emt 0:00:28]} 32. exd6 {[%emt 0:00:16]} Qd7 {
[%emt 0:00:33]} 33. Be3 {[%emt 0:00:32][%cal Yg5e3,Ye3b6,Yb6c7]} Rb8 {[%emt 0:
00:29]} 34. h6 {[%emt 0:01:05]} Ng6 {[%emt 0:00:00]} 35. hxg7 {[%emt 0:00:14]}
e5 {[%emt 0:00:23]} 36. f3 {[%emt 0:03:44]} Kxg7 {[%emt 0:00:13]} 37. Qc6 {
[%emt 0:00:36]} Nf8 {[%emt 0:00:46]} 38. Bxb6 {[%emt 0:01:59]} Rc8 {[%emt 0:00:
04]} 39. Qxd7 {[%emt 0:01:23]} Nxd7 {[%emt 0:00:00] Endgame KRB-KRN} 40. Bc7 {
[%emt 0:00:19]} Kf6 {[%emt 0:00:28]} 41. b6 {[%emt 0:30:21]} Ke6 {[%emt 0:30:
19]} 42. b7 {[%emt 0:00:08]} Rg8 {[%emt 0:00:21]} 43. Rb1 {[%emt 0:00:04]} Nb8
{[%emt 0:01:10]} 44. Rb5 {[%emt 0:00:00]} f6 {[%emt 0:00:19]} 45. Rxa5 {
[%emt 0:00:07] Weighted Error Value: White=0.07 (flawless) /Black=0.32} 1-0

[Event "44th Chess Olympiad Open 2022"]
[Site "Chennai"]
[Date "2022.07.30"]
[Round "2.39"]
[White "Salih, Akar Ali Salih"]
[Black "Djukic, Nikola"]
[Result "0-1"]
[WhiteElo "2243"]
[BlackElo "2526"]
[Annotator "TA"]
[PlyCount "60"]
[EventDate "2022.??.??"]
[TimeControl "60"]

{[%evp 9,60,21,17,10,34,0,8,0,0,0,7,0,0,0,0,0,0,0,5,0,2,-14,-9,-63,-46,-74,-77,
-77,0,-83,-80,-81,-68,-105,-100,-117,-88,-222,-62,-238,-266,-262,-251,-231,
-203,-566,-555,-901,-491,-496,-493,-765,-574]} 1. d4 {[%emt 0:01:54]} d5 {
[%emt 0:00:15]} 2. Nf3 {[%emt 0:00:38]} Nf6 {[%emt 0:00:30]} 3. c4 {[%emt 0:00:
00]} c6 {[%emt 0:00:00]} 4. e3 {[%emt 0:01:00]} Bg4 {[%emt 0:13:52]} 5. Nc3 {
[%emt 0:01:31]} e6 {[%emt 0:00:33]} 6. h3 {[%emt 0:00:26] D11: Slav Defence: 3
Nf3 sidelines and 3...Nf6 4 e3 Bg4.} Bf5 {[%emt 0:02:59] [#]} 7. Ne5 $146 {
[%emt 0:08:03] aiming for g4.} ({Predecessor:} 7. Nh4 Be4 8. Be2 Nbd7 9. O-O h6
10. Nxe4 dxe4 11. g3 Bd6 12. b4 Bxb4 13. Rb1 {1-0 (83) Antipov,M (2593)
-Motylev,A (2661) Sochi 2018}) 7... h6 {[%emt 0:09:10]} 8. Bd3 {[%emt 0:06:03]
The position is equal.} Bxd3 {[%emt 0:01:10]} 9. Qxd3 {[%emt 0:00:01]} Nbd7 {
[%emt 0:00:17]} 10. Nxd7 {[%emt 0:12:14]} Qxd7 {[%emt 0:00:40]} 11. O-O {
[%emt 0:00:27]} Be7 {[%emt 0:13:05]} 12. c5 {[%emt 0:15:15]} b6 {[%emt 0:03:04]
} 13. b4 {[%emt 0:03:40]} O-O {[%emt 0:02:18]} 14. Bd2 {[%emt 0:02:32]} Qc7 {
[%emt 0:26:26]} 15. f4 {[%emt 0:01:34]} Nd7 {[%emt 0:00:33]} 16. f5 {[%emt 0:
00:00]} (16. Qa6 $11) 16... e5 $15 {[%emt 0:05:15]} 17. Rac1 {[%emt 0:05:33]}
bxc5 {[%emt 0:01:13]} 18. bxc5 {[%emt 0:00:34]} Rab8 {[%emt 0:01:01]} (18...
Rfe8 $17) 19. Rc2 {[%emt 0:10:29]} (19. e4 $1 $11) 19... Rfe8 $17 {[%emt 0:00:
00]} 20. Be1 {[%emt 0:01:52]} Bg5 {[%emt 0:01:01]} 21. h4 {[%emt 0:01:25]} Bf6
{[%emt 0:01:04]} 22. Ne2 {[%emt 0:04:56]} Qd8 {[%emt 0:04:55]} 23. Qa6 {
[%emt 0:01:02]} (23. g3 $17 {only move.}) 23... Qc8 $2 {[%emt 0:01:17]} ({
Better is} 23... Bxh4 $19 24. Bd2 Qc7) 24. Qa4 $2 {[%emt 0:01:01]} (24. Qxc8
$15 Rbxc8 25. g3) 24... exd4 $19 {[%emt 0:02:16]} 25. exd4 {[%emt 0:01:44] [#]}
Re4 $1 {[%emt 0:00:52]} 26. Bg3 {[%emt 0:02:12]} Rb5 {[%emt 0:01:11]} 27. Rf4
$2 {[%emt 0:01:37]} (27. Qxa7 {is more resistant.} Qe8 28. Nc3 (28. a4 $2 Rb3
$19) 28... Bxd4+ 29. Bf2 Bxc3 30. Rxc3) 27... Qe8 {[%emt 0:00:38] Hoping for ..
.Rxf4. Black is clearly winning.} 28. Qxa7 {[%emt 0:03:38]} Nxc5 {[%emt 0:00:
00]} 29. dxc5 {[%emt 0:01:44]} Rxe2 {[%emt 0:00:20]} 30. Rxe2 {[%emt 0:00:03]}
(30. Qa4 $142 Rxc2 31. Qxc2) 30... Qxe2 {[%emt 0:00:14] Weighted Error Value:
White=0.80/Black=0.28 (precise)} 0-1

[Event "44th Chess Olympiad Open 2022"]
[Site "Chennai"]
[Date "2022.07.30"]
[Round "2.39"]
[White "Mohammed, Zozek Salah Mohamme"]
[Black "Blagojevic, Dragisa"]
[Result "0-1"]
[WhiteElo "2232"]
[BlackElo "2499"]
[Annotator "TA"]
[PlyCount "106"]
[EventDate "2022.??.??"]
[TimeControl "60"]

{[%evp 15,106,11,12,24,16,23,23,8,9,9,6,-40,-31,-23,-38,-37,-24,-50,-36,-44,
-44,-50,-47,-66,12,12,25,25,14,10,18,0,0,0,0,6,38,35,92,105,95,102,153,152,156,
147,154,148,150,134,146,143,152,153,134,49,165,165,161,8,8,34,29,0,0,0,0,0,0,0,
0,-17,-17,-17,-17,-189,-190,-218,-225,-225,-225,-225,-225,-1384,-1489,-1277,
-1170,-1277,-955,-29967,-29960,-5154,-4068]} 1. d4 {[%emt 0:00:03]} d5 {
[%emt 0:00:07]} 2. c4 {[%emt 0:00:09]} e6 {[%emt 0:00:06]} 3. Nf3 {[%emt 0:00:
00]} Nf6 {[%emt 0:00:32]} 4. g3 {[%emt 0:00:16]} dxc4 {[%emt 0:01:03]} 5. Bg2 {
[%emt 0:00:13]} Bb4+ {[%emt 0:00:49]} 6. Bd2 {[%emt 0:00:37]} a5 {[%emt 0:00:
00]} 7. O-O {[%emt 0:00:49]} O-O {[%emt 0:02:00]} 8. Bg5 {[%emt 0:13:02]} Nc6 {
[%emt 0:07:35]} 9. e3 {[%emt 0:03:39] E11: Bogo-Indian.} h6 {[%emt 0:07:45]}
10. Bxf6 {[%emt 0:01:44]} Qxf6 {[%emt 0:00:06]} ({Don't take} 10... gxf6 11. a3
Bd6 12. Nbd2 $16) 11. Qc2 {[%emt 0:04:45] White has an edge.} e5 {[%emt 0:00:
00][%cal Re5d4]} 12. d5 {[%emt 0:11:16]} Ne7 {[%emt 0:02:08] [#]} 13. Nfd2 $146
{[%emt 0:16:26]} (13. a3 $11 Bd6 14. Qxc4) ({Predecessor:} 13. Qxc4 c6 14. dxc6
bxc6 15. Rd1 Nd5 16. a3 Ba6 17. Qc2 Be7 18. Rd2 Nb6 19. b3 {0-1 (44) Li,Y 
(2246)-Hong,A (2390) Chess.com INT 2019}) 13... Rd8 $15 {[%emt 0:07:17]} 14.
Ne4 {[%emt 0:15:15]} Qa6 {[%emt 0:06:06]} 15. a3 {[%emt 0:00:09]} Bd6 {[%emt 0:
00:00]} 16. Nbd2 {[%emt 0:00:34][%cal Yb1d2,Yd2c4,Yc4e5,Ye5d3,Yd3c5,Yc5a4]}
Nxd5 {[%emt 0:12:09]} 17. Nxd6 {[%emt 0:00:58]} Qxd6 {[%emt 0:01:21]} ({
Of course not} 17... Rxd6 18. Nxc4 Rd8 19. Nxe5 $11) 18. Nxc4 {[%emt 0:00:00]}
Qc5 {[%emt 0:13:39]} 19. Rfc1 {[%emt 0:18:39]} f6 {[%emt 0:02:46]} (19... Nb6
$1 $15) 20. Qd2 $11 {[%emt 0:10:25] Threatens to win with e4.} Be6 {[%emt 0:02:
56][%cal Yd5f4] [#]} 21. Nxe5 $1 {[%emt 0:00:18]} Qe7 {[%emt 0:00:00]} 22. Nd3
{[%emt 0:00:39]} (22. Ng6 {seems wilder.} Qe8 23. Qc2 c6 24. Be4) 22... Bf7 {
[%emt 0:00:30]} 23. Qe2 {[%emt 0:00:18]} c6 {[%emt 0:01:00]} 24. Nc5 {[%emt 0:
00:43]} a4 {[%emt 0:02:23]} 25. Qc2 {[%emt 0:00:24]} Nb6 {[%emt 0:00:00]} 26.
Rd1 {[%emt 0:00:05]} Rxd1+ {[%emt 0:06:57]} (26... g5 $14) 27. Rxd1 $16 {
[%emt 0:00:03]} Nc4 {[%emt 0:00:16]} 28. Nxa4 {[%emt 0:00:57]} Nxe3 {[%emt 0:
00:33]} 29. fxe3 {[%emt 0:00:36]} Qxe3+ {[%emt 0:00:06]} 30. Qf2 $1 {[%emt 0:
00:02]} Qxf2+ {[%emt 0:02:38]} 31. Kxf2 {[%emt 0:00:01]} Rxa4 {[%emt 0:00:00]
Endgame [#] KRB-KRB} 32. Rd8+ $1 {[%emt 0:00:12]} ({But not} 32. Rd7 $6 Rc4 $11
) 32... Kh7 {[%emt 0:00:05]} 33. Rd7 {[%emt 0:00:10][%csl Yb7,Yf7]} Bg6 {
[%emt 0:01:03]} 34. Rxb7 {[%emt 0:00:27]} Rc4 {[%emt 0:00:06]} 35. Re7 {
[%emt 0:01:31]} (35. Ke3 $16) 35... Bd3 {[%emt 0:02:03]} (35... Kg8 $14) 36.
Ke3 $18 {[%emt 0:00:17]} Bf5 {[%emt 0:01:45]} 37. Be4 {[%emt 0:01:11] Prevents
Rc2.} (37. Bf3 $18) 37... Bxe4 $11 {[%emt 0:01:15]} 38. Rxe4 {[%emt 0:00:00]
KR-KR} Rc2 {[%emt 0:00:03][%csl Yb2,Yh2]} 39. Rb4 {[%emt 0:00:07]} Rxh2 {
[%emt 0:00:13]} 40. a4 {[%emt 0:00:11]} Rh3 {[%emt 0:02:33]} 41. Kf3 {[%emt 0:
31:22]} Rh5 {[%emt 0:06:16]} 42. Rb6 {[%emt 0:00:00]} Rc5 {[%emt 0:00:00]} 43.
Ke3 {[%emt 0:00:00]} h5 {[%emt 0:21:10][%cal Yh6h5,Yh5h4,Yh4h3]} 44. b4 {
[%emt 0:00:00]} Rc3+ {[%emt 0:00:00]} 45. Kd4 $2 {[%emt 0:00:00]} (45. Kf2 $1
$11) 45... Rxg3 $19 {[%emt 0:00:00]} 46. Rxc6 {[%emt 0:00:23]} h4 {[%emt 0:00:
00]} 47. Rc1 {[%emt 0:00:09] [#] And now Ra1 would win.} Ra3 {[%emt 0:00:00]
Against Ra1} 48. a5 {[%emt 0:01:03]} g5 {[%emt 0:00:00][%cal Yg7g5,Yg5g4]} 49.
Kc5 $2 {[%emt 0:02:22]} (49. Rb1) 49... g4 {[%emt 0:00:00]} 50. Rh1 {[%emt 0:
00:19]} h3 {[%emt 0:00:00]} 51. Kb6 {[%emt 0:00:21]} Kg6 {[%emt 0:00:00]
aiming for ...Kg5.} 52. a6 {[%emt 0:00:07]} Kg5 {[%emt 0:00:00]} 53. a7 {
[%emt 0:00:10]} Kh4 {[%emt 0:00:25] Black used his chance. Weighted Error
Value: White=0.43/Black=0.11 (very precise)} 0-1

[Event "44th Chess Olympiad Open 2022"]
[Site "Chennai"]
[Date "2022.07.30"]
[Round "2.40"]
[White "Kazhgaleyev, Murtas"]
[Black "Karimov, Alisher"]
[Result "0-1"]
[WhiteElo "2536"]
[BlackElo "2234"]
[Annotator "ChessBase"]
[PlyCount "54"]
[EventDate "2022.??.??"]
[TimeControl "60"]

1. d4 {[%emt 0:00:04]} Nf6 {[%emt 0:00:13]} 2. c4 {[%emt 0:00:06]} e6 {[%emt 0:
00:00]} 3. Nc3 {[%emt 0:00:05]} Bb4 {[%emt 0:00:20]} 4. e3 {[%emt 0:00:05]} O-O
{[%emt 0:00:21]} 5. a3 {[%emt 0:00:04]} Bxc3+ {[%emt 0:00:35]} 6. bxc3 {
[%emt 0:00:06]} d6 {[%emt 0:00:17]} 7. Bd3 {[%emt 0:00:21]} e5 {[%emt 0:00:45]}
8. Ne2 {[%emt 0:00:36]} e4 {[%emt 0:00:56]} 9. Bb1 {[%emt 0:00:05]} Be6 {
[%emt 0:00:38]} 10. Ba2 {[%emt 0:01:42]} Re8 {[%emt 0:06:26]} 11. Ng3 {[%emt 0:
00:00]} Nbd7 {[%emt 0:09:24]} 12. d5 {[%emt 0:06:36]} Bg4 {[%emt 0:00:13]} 13.
f3 {[%emt 0:00:24]} exf3 {[%emt 0:07:25]} 14. gxf3 {[%emt 0:00:09]} Bh3 {
[%emt 0:00:38]} 15. e4 {[%emt 0:08:48]} h5 {[%emt 0:17:51]} 16. Rg1 {[%emt 0:
00:00]} h4 {[%emt 0:19:07]} 17. Ne2 {[%emt 0:00:34]} Ne5 {[%emt 0:00:43]} 18.
Nd4 {[%emt 0:04:59]} c5 {[%emt 0:03:14]} 19. dxc6 {[%emt 0:00:14]} Qa5 {
[%emt 0:00:30]} 20. Qc2 {[%emt 0:14:31]} Nxf3+ {[%emt 0:07:03]} 21. Nxf3 {
[%emt 0:00:07]} Rxe4+ {[%emt 0:00:07]} 22. Kd1 {[%emt 0:02:19]} Qf5 {[%emt 0:
00:00]} 23. Qd3 {[%emt 0:12:48]} Ng4 {[%emt 0:05:48]} 24. cxb7 {[%emt 0:05:36]}
Rae8 {[%emt 0:02:36]} 25. Kd2 {[%emt 0:06:44]} Ne5 {[%emt 0:04:32]} 26. Nxe5 {
[%emt 0:03:25]} Qf2+ {[%emt 0:00:09]} 27. Kd1 {[%emt 0:00:04]} Bg4+ {[%emt 0:
00:00]} 0-1